Cogmind - Beta 14 @@@ ROGUE MODE // 2025.01.01 @ 13:18:24 Player: P9H Result: Destroyed by H-66 Slayer with Gauss Rifle Performance ------------- Evolutions (5) 2500 Regions Visited (7) 1400 Robots Destroyed (149) 745 Value Destroyed (5387) 5387 Prototype IDs (4) 80 Alien Tech Used (0) 0 Bonus (218) 218 TOTAL SCORE: 10330 Bonus ------- High Alert Combat Kills 398 Follower Combat Kills 200 Friendly Fire -380 Cogmind --------- Core Integrity 0/1000 Matter 223/300 Energy 31/100 System Corruption 9% Temperature Cool (0) Movement Core (1500) Ox29 Location -5/Factory Parts ------- > --- POWER (4) -------- (None) > --- PROPULSION (2) --- (None) > --- UTILITY (8) ------ Huge Storage Unit > --- WEAPON (3) ------- Proton Cannon > --- INVENTORY (25) --- Compact Wheel Improved Heat Sink Hardened Medium Armor Plating High-powered Tractor Beam Tesla Rifle Tesla Rifle Improved Arc Projector Pulse Rifle Improved EM Pulse Cannon Proton Cannon Disruptor Cannon Enhanced Gauss Cannon Peak State ------------ > --- POWER ------------ Light Nuclear Core Micro Nuclear Core Micro Nuclear Core Micro Fission Core > --- PROPULSION ------- Wheel > --- UTILITY ---------- Improved Heat Sink Improved Heat Sink Improved Heat Sink Advanced Heat Sink Huge Storage Unit Improved Light Armor Plating Graphene Brace Improved Thermal Shield > --- WEAPON ----------- Advanced Plasma Cannon Heavy Phase Cannon Coil Gun > --- INVENTORY -------- Light Nuclear Core Light Nuclear Core Light Nuclear Core Light Nuclear Core Micro Fission Core Hardened Medium Armor Plating Hardened Medium Armor Plating Hardened Medium Armor Plating High-powered Tractor Beam Recalibrator Tesla Rifle Improved Arc Projector Pulse Rifle Gatling Laser Improved EM Pulse Cannon Proton Cannon Proton Cannon Disruptor Cannon Plasma Cannon Heavy Assault Cannon Gauss Cannon Mass Driver Enhanced Gauss Cannon Enhanced Gauss Cannon [Rating: 76] Favorites ----------- Power Light Nuclear Core Engine Improved Deuterium Engine Power Core Light Nuclear Core Reactor Cold Fusion Reactor Propulsion Wheel Treads Armored Treads Leg Aluminum Leg Wheel Wheel Utility Improved Heat Sink Device Improved Heat Sink Storage High-capacity Storage Unit Protection Hardened Light Armor Plating Weapon Heavy Laser Energy Gun Heavy Laser Energy Cannon Plasma Cannon Ballistic Gun Gauss Rifle Ballistic Cannon Flak Cannon Build | -11 -10 -9 -9 -8 -7 -6 -5 ------- Run | Yrd Mat Mat Sto Mat Fac Fac Fac Slots Evolved 10 | . . 2 . 2 2 2 2 Power 3 | . . . . 1 1 . 1 Propulsion . | . . . . . . . . Utility 6 | . . 1 . 1 1 2 1 Weapon 1 | . . 1 . . . . . Parts Attached 127 | 5 5 6 9 22 39 10 31 Power 36 | . 1 1 3 6 14 3 8 Engine 15 | . 1 1 2 4 5 2 . Core 20 | . . . . 2 9 1 8 Reactor 1 | . . . 1 . . . . Propulsion 22 | 2 . 1 3 4 8 1 3 Treads 7 | . . . 2 4 1 . . Leg 2 | . . . . . 2 . . Wheel 13 | 2 . 1 1 . 5 1 3 Hover . | . . . . . . . . Flight . | . . . . . . . . Utility 35 | 1 3 2 . 7 9 4 9 Device 26 | . 1 2 . 6 8 3 6 Storage 4 | 1 2 . . . 1 . . Processor . | . . . . . . . . Hackware . | . . . . . . . . Protection 5 | . . . . 1 . 1 3 Artifact . | . . . . . . . . Weapon 34 | 2 1 2 3 5 8 2 11 Energy Gun 15 | 1 . 1 2 4 5 1 1 Energy Cannon 8 | . . . . . 2 . 6 Ballistic Gun 7 | 1 1 1 1 . 1 1 1 Ballistic Cannon 4 | . . . . 1 . . 3 Launcher . | . . . . . . . . Special Weapon . | . . . . . . . . Impact Weapon . | . . . . . . . . Slashing Weapon . | . . . . . . . . Piercing Weapon . | . . . . . . . . Special Melee Weapon . | . . . . . . . . Unidentified Prototypes 4 | . . . 1 2 . 1 . Corrupted Parts 1 | . . . . . 1 . . System Corruption 2 | . . . . . 2 . . Parts Lost 63 | . . 2 7 3 15 5 31 Power 18 | . . . 2 . 6 2 8 Propulsion 15 | . . 2 2 1 4 1 5 Utility 16 | . . . . 1 3 1 11 Weapon 14 | . . . 3 1 2 1 7 Highest Loss Streak 24 | . . 1 4 1 4 2 24 To Critical Strikes . | . . . . . . . . Average Slot Usage (%) 95 | . 86 88 94 99 95 94 92 Engine 6 | . 8 11 5 9 7 2 3 Core 9 | . . . . . 13 14 18 Reactor 1 | . . . 4 8 . . . Treads 8 | . . . 14 18 8 . . Wheel 5 | . 28 16 3 . 3 9 5 Device 26 | . 6 16 22 18 29 32 32 Storage 7 | . 14 11 11 9 7 6 5 Protection 2 | . . . . 7 . 5 6 Energy Gun 13 | . 14 16 19 18 14 12 1 Energy Cannon 2 | . . . . . 2 6 9 Ballistic Gun 5 | . 14 16 12 2 3 . 4 Ballistic Cannon 1 | . . . . 6 1 . . Peak Build Rating 76 | 5 9 14 20 43 50 60 76 Average Rating 41 | 2 7 12 16 30 44 54 67 On Entrance 23 | . 5 9 13 20 41 44 55 Naked Turns . | . . . . . . . . Heaviest Build 136 | 8 50 54 63 76 117 126 136 Greatest Support 40 | 26 26 32 40 40 40 26 26 Greatest Overweight (x) 44 | . 1 3 5 1 37 12 44 Average Overweight (x) 4 | . . 2 2 1 4 7 10 Largest Inventory Capacity 25 | 8 20 20 20 20 25 25 25 Average Capacity 21 | 6 10 20 20 20 21 25 25 Most Carried 25 | 5 9 20 20 20 25 25 25 Average Carried 20 | 3 7 16 19 19 19 24 24 Final Capacity 25 | 8 20 20 20 20 25 25 25 Final Carried 25 | 5 8 20 20 20 25 24 12 Class Distribution -------------------- 71% | Scavenger-Tank 8% | Gunner 5% | Commander-Tank 4% | Mutant 4% | Tank Dominant Class ---------------- Mutant | -10/Materials Gunner | -9/Materials Gunner | -9/Storage Scavenger-Tank | -8/Materials Scavenger-Tank | -7/Factory Scavenger-Tank | -6/Factory Scavenger-Tank | -5/Factory Resources | -11 -10 -9 -9 -8 -7 -6 -5 ----------- Run | Yrd Mat Mat Sto Mat Fac Fac Fac Matter Collected 2447 | 192 60 316 195 675 609 135 265 Remotely 302 | . . 302 . . . . . Salvage Created 5844 | . 60 522 703 1764 1694 362 739 Parts 294 | . 10 35 47 80 64 19 39 Haulers Intercepted 1 | . . 1 . . . . . Recyclers Shooed 7 | . . . . 6 . 1 . Parts Field Recycled . | . . . . . . . . Retrieved Matter . | . . . . . . . . Parts Self-Destructed . | . . . . . . . . Prevented . | . . . . . . . . Kills | -11 -10 -9 -9 -8 -7 -6 -5 ------- Run | Yrd Mat Mat Sto Mat Fac Fac Fac Combat Hostiles Destroyed 115 | . 3 10 16 34 29 9 14 Guns 73 | . 3 10 12 17 19 9 3 Cannons 36 | . . . . 16 10 . 10 AOE 6 | . . . 4 1 . . 1 Classes Destroyed 16 | . 2 6 1 5 2 . . Worker 11 | . . 1 1 . 4 2 3 Builder 6 | . . . . 2 2 . 2 Tunneler 2 | . . 1 . . . . 1 Hauler 1 | . . 1 . . . . . Recycler 8 | . . 1 . 2 4 . 1 Operator 2 | . 1 . . . . 1 . Watcher 2 | . . . . 1 1 . . Swarmer 22 | . 3 3 . . 4 7 5 Grunt 55 | . . 4 9 25 17 . . Brawler 2 | . . . 1 . 1 . . Duelist 1 | . . . . 1 . . . Sentry 18 | . . 3 6 6 1 2 . Specialist 4 | . . . . 4 . . . Hunter 4 | . . . . . 2 . 2 Programmer 11 | . . . . . 4 . 7 Heavy 1 | . . . . 1 . . . Best Kill Streak 8 | . 3 5 7 8 6 5 7 Combat Bots Only 8 | . 3 4 6 8 5 4 5 Max Kills in Single Turn 6 | . 1 1 4 2 1 1 6 Gunslinging . | . . . . . . . . Exploded 3 | . . . 3 1 . . 1 Melee . | . . . . . . . . Uniques/NPCs Destroyed . | . . . . . . . . Combat | -11 -10 -9 -9 -8 -7 -6 -5 -------- Run | Yrd Mat Mat Sto Mat Fac Fac Fac Hostile Shots Fired 830 | . 27 36 49 130 191 85 312 Missed 257 | . 7 13 16 40 48 38 95 Damage Taken 9356 | . 160 276 640 1511 2146 557 4066 Core 1859 | . 55 46 131 159 415 44 1009 Absorbed by Shields . | . . . . . . . . Core Remaining (%) 73 | 100 78 . 55 71 40 94 . Volleys Fired 294 | . 8 27 34 79 89 24 33 Largest 3 | . 2 3 3 3 3 3 3 Hottest 240 | . 60 108 133 171 240 218 218 Shots Fired 824 | . 16 69 91 228 257 72 91 Gun 621 | . 16 69 91 158 205 48 34 Cannon 203 | . . . . 70 52 24 57 Launcher . | . . . . . . . . Special . | . . . . . . . . Kinetic 254 | . 8 46 40 72 46 7 35 Thermal 497 | . 8 16 18 154 195 51 55 Explosive . | . . . . . . . . Electromagnetic 73 | . . 7 33 2 16 14 1 Robot Hit Streak 16 | . 3 10 16 15 12 10 13 Robot Miss Streak 9 | . 3 5 3 9 6 4 3 Penetration Max 1 | . . . . . . . 1 Secondary Targets 5 | . 1 1 2 1 . . . Max Gunslinging Chain 1 | . 1 1 1 1 . . . Shots Hit Robots 557 | . 8 40 58 179 175 43 54 Core Hits 373 | . 5 24 45 157 94 16 32 Critical Kills 1 | . . . . . . 1 . Critical Parts Destroyed 1 | . . 1 . . . . . Critical Strikes 13 | . . 1 . 3 5 3 1 Burn 9 | . . . . 3 5 1 . Meltdown 1 | . . . . . . 1 . Destroy 1 | . . 1 . . . . . Blast 1 | . . . . . . . 1 Corrupt 1 | . . . . . . 1 . Melee Attacks . | . . . . . . . . Impact . | . . . . . . . . Slashing . | . . . . . . . . Piercing . | . . . . . . . . Sneak Attacks . | . . . . . . . . Combat Hostiles . | . . . . . . . . Follow-up Attacks . | . . . . . . . . Damage Inflicted 12390 | . 88 600 1108 3307 3777 941 2569 Guns 7471 | . 88 600 784 2081 2854 614 450 Cannons 3652 | . . . . 1162 757 327 1406 Explosions 1233 | . . . 300 54 166 . 713 Melee . | . . . . . . . . Ramming 34 | . . . 24 10 . . . Kinetic 3006 | . 36 420 255 1178 435 118 564 Thermal 8174 | . 52 87 242 2100 3228 593 1872 Explosive 320 | . . . 222 . . . 98 Electromagnetic 856 | . . 93 365 19 114 230 35 Impact . | . . . . . . . . Slashing . | . . . . . . . . Piercing . | . . . . . . . . Highest Corruption 9 | . . . . . 6 1 9 Average Corruption 2 | . . . . . 3 1 2 Corruption Purged . | . . . . . . . . Corruption Blocked . | . . . . . . . . Effects 44 | . . . . . 32 1 11 Message Errors 11 | . . . . . 7 . 4 Matter Fused 12 | . . . . . 10 1 1 Heat Flow Errors 3 | . . . . . 1 . 2 Energy Discharges 3 | . . . . . 2 . 1 Parts Rejected 2 | . . . . . 2 . . Parts Fused 1 | . . . . . 1 . . Data Loss (minor) 5 | . . . . . 3 . 2 Data Loss (major) 1 | . . . . . 1 . . Alerts 3 | . . . . . 2 . 1 Weapon Failures 3 | . . . . . 3 . . Overload Shots . | . . . . . . . . Overflow Damage 303 | . . . 20 1 31 11 240 Projectiles 91 | . . . . 1 . 11 79 Explosions 212 | . . . 20 . 31 . 161 Melee . | . . . . . . . . Knockbacks 27 | . . . . 23 4 . . Impact . | . . . . . . . . Kinetic 26 | . . . . 22 4 . . Secondary 1 | . . . . 1 . . . Self-Inflicted Damage 344 | . . . 200 . . . 144 Shots 5 | . . . 3 . . . 2 Rammed 2 | . . . . 2 . . . Targets Rammed 2 | . . . . 2 . . . Kicked . | . . . . . . . . Crushed . | . . . . . . . . Highest Temperature 473 | . . 230 27 335 473 28 151 Average Temperature 71 | . . 69 11 79 85 6 18 Received Heat Transfer 1809 | . . 105 174 675 606 87 162 Effects 8 | . . 1 . 1 6 . . Shutdowns 2 | . . . . . 2 . . Interference 4 | . . 1 . . 3 . . Matter Decay 1 | . . . . 1 . . . Short Circuit 1 | . . . . . 1 . . Siege Activations . | . . . . . . . . Robots Corrupted . | . . . . . . . . Combat Hostiles . | . . . . . . . . Parts Fried 1 | . . . . . . 1 . Impact Corruptions . | . . . . . . . . Robots Melted 1 | . . . . . . 1 . Combat Hostiles . | . . . . . . . . Parts Melted 35 | . . . 1 10 12 4 8 Heat Transferred 14752 | . 125 200 415 4206 6765 1242 1799 Parts Sabotaged 3 | . . . . . . . 3 Parts Stolen . | . . . . . . . . Parts Stripped . | . . . . . . . . Power Chain Reactions 3 | . . . 2 1 . . . Alert | -11 -10 -9 -9 -8 -7 -6 -5 ------- Run | Yrd Mat Mat Sto Mat Fac Fac Fac Peak Influence 743 | . 110 347 584 743 500 309 397 Initial 299 | . . 46 146 178 299 233 151 Average 308 | . 67 195 427 372 360 235 163 Maximum Alert Level 3 | . . 1 2 3 2 1 1 Low Security (%) 27 | 100 100 68 2 9 6 20 91 Level 1 50 | . . 31 28 55 70 79 8 Level 2 19 | . . . 69 22 23 . . Level 3 2 | . . . . 11 . . . Level 4 . | . . . . . . . . Level 5 . | . . . . . . . . High Security . | . . . . . . . . Max Security . | . . . . . . . . Squads Dispatched 25 | . . 2 2 8 8 . 5 Investigation 5 | . . 2 . 1 1 . 1 Extermination 7 | . . . . . 4 . 3 Reinforcement 11 | . . . 2 6 3 . . Assault . | . . . . . . . . Garrison 2 | . . . . 1 . . 1 Intercept . | . . . . . . . . Searches Triggered . | . . . . . . . . Construction Impeded 2 | . . . . 2 . . . Haulers Reinforced 2 | . . . . . 2 . . Active Scanning Responses . | . . . . . . . . Cargo Convoy Interrupts 1 | . . . . . . . 1 Stealth | -11 -10 -9 -9 -8 -7 -6 -5 --------- Run | Yrd Mat Mat Sto Mat Fac Fac Fac Distress Signals 14 | . 1 2 1 6 2 2 . Communications Jammed . | . . . . . . . . Distress Signals . | . . . . . . . . Times Spotted 179 | . 7 14 24 42 47 15 30 Peak Tracking Total 13 | . 4 6 7 6 5 4 13 Tactical Retreats 10 | . . 1 . 1 4 3 1 Traps | -11 -10 -9 -9 -8 -7 -6 -5 ------- Run | Yrd Mat Mat Sto Mat Fac Fac Fac Traps Triggered 6 | . . 1 . . 3 1 1 Indirectly . | . . . . . . . . Trap Hack Attempts . | . . . . . . . . Triggered . | . . . . . . . . Disarmed . | . . . . . . . . Reprogrammed . | . . . . . . . . Reused . | . . . . . . . . Traps Extracted . | . . . . . . . . Installed . | . . . . . . . . Triggered . | . . . . . . . . Machines | -11 -10 -9 -9 -8 -7 -6 -5 ---------- Run | Yrd Mat Mat Sto Mat Fac Fac Fac Machines Disabled 21 | . . . 6 . 4 . 11 Max in Single Turn 8 | . . . 2 . 2 . 8 Garrison Access 1 | . . . 1 . . . . Machines Repaired . | . . . . . . . . Machines Dismantled . | . . . . . . . . Machines Sabotaged . | . . . . . . . . Overloaded Fab Kills . | . . . . . . . . Hacking | -11 -10 -9 -9 -8 -7 -6 -5 --------- Run | Yrd Mat Mat Sto Mat Fac Fac Fac Machines Accessed 8 | . 1 1 3 . 1 1 1 Terminals 7 | . 1 1 2 . 1 1 1 Fabricators . | . . . . . . . . Repair Stations . | . . . . . . . . Recycling Units . | . . . . . . . . Scanalyzers . | . . . . . . . . Garrison Access 1 | . . . 1 . . . . Total Hacks 16 | . 3 3 3 . 2 1 4 Successful 7 | . 2 1 3 . . . 1 Failed 9 | . 1 2 . . 2 1 3 Catastrophic 4 | . . 2 . . 1 1 . Database Lockouts . | . . . . . . . . Manual 1 | . . . . . . 1 . Terminals 15 | . 3 3 2 . 2 1 4 Fabricators . | . . . . . . . . Repair Stations . | . . . . . . . . Recycling Units . | . . . . . . . . Scanalyzers . | . . . . . . . . Garrison Access 1 | . . . 1 . . . . Terminal Hacks 6 | . 2 1 2 . . . 1 Open Door 2 | . . . 2 . . . . Level Access Points 1 | . . 1 . . . . . Branch Access Points 1 | . 1 . . . . . . Alert Level 1 | . . . . . . . 1 Dispatch Records 1 | . 1 . . . . . . Fabricator Hacks . | . . . . . . . . Repair Station Hacks . | . . . . . . . . Recycling Unit Hacks . | . . . . . . . . Scanalyzer . | . . . . . . . . Garrison Access Hacks 1 | . . . 1 . . . . Seal Access 1 | . . . 1 . . . . Unauthorized Hacks . | . . . . . . . . Terminals . | . . . . . . . . Fabricators . | . . . . . . . . Repair Stations . | . . . . . . . . Recycling Units . | . . . . . . . . Scanalyzers . | . . . . . . . . Garrison Access . | . . . . . . . . Data Cores Recovered 2 | . 1 . . . . 1 . Used 1 | . 1 . . . . . . Hacking Detections 5 | . 1 1 . . 1 1 1 Full Trace Events 3 | . . 1 . . 1 . 1 Feedback Events . | . . . . . . . . Feedback Blocked . | . . . . . . . . Robot Schematics Acquired . | . . . . . . . . Robots Built . | . . . . . . . . Authchips . | . . . . . . . . Time . | . . . . . . . . Total Robot Build Rating . | . . . . . . . . Part Schematics Acquired . | . . . . . . . . Parts Built . | . . . . . . . . Authchips . | . . . . . . . . Time . | . . . . . . . . Total Part Build Rating . | . . . . . . . . Parts Repaired . | . . . . . . . . Time . | . . . . . . . . Parts Recycled . | . . . . . . . . Recycled Matter . | . . . . . . . . Retrieved Matter . | . . . . . . . . Retrieved Components . | . . . . . . . . Parts Scanalyzed . | . . . . . . . . Part Schematics Acquired . | . . . . . . . . Parts Damaged . | . . . . . . . . Bothacking | -11 -10 -9 -9 -8 -7 -6 -5 ------------ Run | Yrd Mat Mat Sto Mat Fac Fac Fac Used RIF Installer . | . . . . . . . . Robots Hacked . | . . . . . . . . Non-combat . | . . . . . . . . Combat . | . . . . . . . . Robot Hacks Applied . | . . . . . . . . Relay Couplers Released . | . . . . . . . . Fabnet Peak Effective % . | . . . . . . . . Robots Rewired . | . . . . . . . . Allies Hacked . | . . . . . . . . Hacks Repelled . | . . . . . . . . Allies | -11 -10 -9 -9 -8 -7 -6 -5 -------- Run | Yrd Mat Mat Sto Mat Fac Fac Fac Total Allies 10 | . . . 10 . . . . Largest Group 10 | . . . 10 7 . . . Highest-Rated Group 88 | . . . 88 64 . . . Highest-Rated Ally 16 | . . . 16 16 . . . Total Orders . | . . . . . . . . Ally Attacks 60 | . . . 31 29 . . . Total Damage 580 | . . . 276 304 . . . Kills 8 | . . . 4 4 . . . Allies Corrupted . | . . . . . . . . Allies Melted . | . . . . . . . . Intel | -11 -10 -9 -9 -8 -7 -6 -5 ------- Run | Yrd Mat Mat Sto Mat Fac Fac Fac Robot Analysis Total . | . . . . . . . . Derelict Logs Recovered . | . . . . . . . . Drone Launches . | . . . . . . . . Drone Recoveries . | . . . . . . . . Exploration | -11 -10 -9 -9 -8 -7 -6 -5 ------------- Run | Yrd Mat Mat Sto Mat Fac Fac Fac Turns Passed 8760 | 45 303 388 807 1633 3502 689 1393 Spaces Moved 3376 | 42 277 198 322 507 1247 293 490 Core 26 | 14 . . . . 8 . 4 Treads 1221 | . . . 210 507 504 . . Legs 36 | . . . . . 36 . . Wheels 2093 | 28 277 198 112 . 699 293 486 Hover . | . . . . . . . . Flight . | . . . . . . . . Fastest Speed 50 | 50 90 115 120 240 155 150 165 Average Speed 213 | 76 94 128 208 241 237 194 251 Slowest Speed 2250 | 90 105 145 240 250 1900 260 2250 Overloaded Moves . | . . . . . . . . Propulsion Burnouts . | . . . . . . . . Robots Hopped . | . . . . . . . . Cave-ins Triggered . | . . . . . . . . Exploration Rate (%) 28 | 4 44 24 63 47 26 9 7 Regions Visited 7 Branch Regions 1 Pre-discovered Areas . | . . . . . . . . Known Exits Taken 1 | . . . 1 . . . . Unknown Exits Taken 6 | 1 1 1 . 1 1 1 . Scrap Searched . | . . . . . . . . Spaces Dug . | . . . . . . . . Terrain Destroyed 186 | . . . 41 6 58 2 79 Melee . | . . . . . . . . Projectile 16 | . . . . . 1 2 13 AOE 170 | . . . 41 6 57 . 66 Terrain Rammed 2 | . . . 2 . . . . Walls Destroyed . | . . . . . . . . Machines Disabled . | . . . . . . . . Actions | -11 -10 -9 -9 -8 -7 -6 -5 --------- Run | Yrd Mat Mat Sto Mat Fac Fac Fac Total 4318 | 53 304 285 387 753 1587 361 588 Wait 294 | . 7 27 10 95 139 12 4 Move 3369 | 41 276 197 321 506 1246 292 490 Hop . | . . . . . . . . Pick Up 130 | 7 5 20 9 19 42 13 15 Fast Attach 21 | 3 1 2 1 4 6 1 3 Attach 68 | 2 1 3 7 4 24 7 20 Detach . | . . . . . . . . Swap 38 | . 3 1 1 14 9 2 8 Drop 92 | . 3 8 2 30 24 10 15 Fire 294 | . 8 27 34 79 89 24 33 Melee . | . . . . . . . . Ram 2 | . . . 2 . . . . Kick . | . . . . . . . . Crush 2 | . . . . 2 . . . Escape Stasis 8 | . . . . . 8 . . Rewire . | . . . . . . . . Trap . | . . . . . . . . Miscellaneous . | . . . . . . . . Route ------- -11/Scrapyard -10/Materials (discovered 2 exits: *Mat / Min) -9/Materials (discovered 4 exits: Mat x3 / *Sto) -9/Storage -8/Materials -7/Factory -6/Factory -5/Factory History --------- Turn | Location | Event 12 | -11/Scrapyard | Discovered new exit (range 16) 46 | -11/Scrapyard | Entered Materials 122 | -10/Materials | Identified exit to Mines 254 | -10/Materials | Discovered new exit (range 3) 313 | -10/Materials | Build established: Mutant 349 | -10/Materials | Entered another Materials area 349 | -9/Materials | Evolved 2 slots: Utility x1, Weapon x1 352 | -9/Materials | Identified exit to Materials 690 | -9/Materials | Discovered new exit (range 13) 737 | -9/Materials | Entered Storage 1020 | -9/Storage | Lost 4 parts (1p1n2w) 1304 | -9/Storage | Assisted by bots powering up and referring to "LRC-V3" 1473 | -9/Storage | Lost 3 allies 1492 | -9/Storage | Discovered exit to Materials (range 16) 1544 | -9/Storage | Entered Materials 1544 | -8/Materials | Accompanied by 7 allies 1544 | -8/Materials | Evolved 2 slots: Power x1, Utility x1 1851 | -8/Materials | Build established: Commander-Tank 2072 | -8/Materials | Lost 5 allies 2352 | -8/Materials | Build established: Tank 2690 | -8/Materials | Build established: Scavenger-Tank 2758 | -8/Materials | Garrison activated, responded to threat 2837 | -8/Materials | Destroyed 8 combat bots 3159 | -8/Materials | Discovered new exit (range 7) 3177 | -8/Materials | Entered Factory 3177 | -7/Factory | Evolved 2 slots: Power x1, Utility x1 4050 | -7/Factory | Lost 4 parts (3p1u) 5391 | -7/Factory | Lost 3 parts (1n2u) 5851 | -7/Factory | Lost 3 parts (1p1n1w) 6232 | -7/Factory | Core integrity fell below 50% 6264 | -7/Factory | Lost 3 parts (2p1w) 6644 | -7/Factory | Discovered new exit (range 15) 6679 | -7/Factory | Entered another Factory area 6679 | -6/Factory | Evolved 2 slots: Utility x2 7301 | -6/Factory | Discovered new exit (range 16) 7368 | -6/Factory | Entered another Factory area 7368 | -5/Factory | Evolved 2 slots: Power x1, Utility x1 8714 | -5/Factory | Garrison activated, responded to threat 8718 | -5/Factory | Cargo convoy interrupted 8736 | -5/Factory | Core integrity fell below 50% 8755 | -5/Factory | Core integrity fell below 20% 8761 | -5/Factory | Destroyed by H-66 Slayer with Gauss Rifle Last Messages --------------- 08751_ R-10 Processor collects Lgt. Nuclear Core. 08752_ Hrd. Medium Armor Plating destroyed. 08752_ Penetrated by Slug. 08752_ U-05 Engineer lays Concrete. 08754_ R-10 Processor collects Hvy. Phase Cannon. 08754_ U-05 Engineer lays Concrete. 08756_ Penetrated by Slug. 08756_ U-05 Engineer lays Concrete. 08757_ Penetrated by Slug. 08757_ Wheel destroyed. 08757_ Graphene Brace destroyed. 08757_ Penetrated by Slug. 08757_ Slug penetrates Wall. 08758_ Mic. Fission Core destroyed. 08758_ U-05 Engineer lays Concrete. 08760_ Penetrated by Slug. 08761_ Slug penetrates Wall. 08761_ Penetrated by Slug. Map ----- +----------------------------------------------------+ | ##### #?????????????????????????????????? | | #### #?????????????????????????????????? | | # #?????????????????????????????????? | | #|##+####### #?????????????????????????????????? | | ### #[ #?????? ????????????????????????????????? | | %!# #???????##???????????????????????????????? | | !# [#????????????????????????????????????????? | | # #??????????? ??? ????????????????????? | | + #??????????? # """ ????????????????? | | "#### #??????????# # # ?????????????? | | #??# #??????????# ;"""" #" ???????????? | | ##??#####???????? # % " "?????????? | | ????????????????? # %" #?????????? | | ?????????????????" ; %% " "#????????? | | ###?????????????"" ; %[ "#????????? | | #?????????????"" = "#????????? | | #??????????????" "#????????? | | #???????######### R u "##???????? | | #???????# % ??????? | | #???????# = h h i ??????? | | #???????# xp ?????? | | ########### hhh ?????? | | !| g ?????? | | ########### #########+##;;;;[ # ?????? | | ########### #??# # ###???????????????? | | ### ## #??# @ # ##?????????????????? | | %!# ## #??# # #??????????????????? | | # ## #??# ###??????????????????? | | + !// ## #??# #????????????????????? | | # !/ ## #??# #????????????????????? | | =# // ## #??# #????????????????????? | | ###########!#??# #????????????????????? | | #?????#%#??# #????????????????????? | | "" #????## ##?# #????????????????????? | | "" ]#????# #?# #????????????????????? | | "" #????#[ #?# #????????????????????? | | #????# [#?#####;########????????????????????? | | "" #????## ##?????# #???????????????????????????? | | "" #?????# #??????# #???????????????????????????? | | "" #?????# ######## #???????????????????????????? | | #?????# #???????????????????????????? | | #####?????# ###### #???????????????????????????? | | ????#######+###### ########????????????????????? | | ????# # #????????????????????? | | ????# """"""""" # #????????????????????? | | ????# + != ###??????????????????? | | ????# ""T"" # != +??????????????????? | | ????# """"" ] # ###??????????????????? | | ????############## #????????????????????? | | ?????????????????#]= #????????????????????? | +----------------------------------------------------+ Best States ------------- Heat Dissipation 101 Energy Generation 44 Energy Capacity 540 Matter Stores 300 Matter Capacity 300 Sight Range 16 Terrain Scan Density 10 Armor Coverage 375 Resistance: TH 25 Evasion (%) 50 Recoil Reduction 2 Item Schematics ----------------- None Robot Schematics ------------------ None Fabricated ------------ Nothing Alien Tech Used ----------------- None Achievements -------------- None Challenges ------------ None Game ------ Seed SpreadSigixDetonator Manual? 0 Play Time 01:00:16 Cumulative 30.0 hours Start 2025.01.01 @ 12:12:23 End 2025.01.01 @ 13:18:24 Sessions 1 Manual Loads 0 Difficulty Rogue Special Mode None Game No. 60 Rogue 60 Adventurer 0 Explorer 0 Win Type - Total 0 Types 0/0/0/0/0/0/0/0/0 Lore% 4 Gallery% 27 Achievement% 23 Wizard Run 0 Options --------- Layout 1 ASCII 0 Keyboard 0 Movement Mouse Keybinds 0 Fullscreen 2 Font 32/SmallcapsGlow Map View 50x35 Zoom Use 0% Tactical HUD 1 Map Filters NONE Filters NONE Steam 1 RUN: 9025fcb9-7d9f-4db5-8c12-ece97385cdb0